Workbook

Sheet SalaryBenefits
B2: Hired Labor and Management Cost Calculator Oklahoma State University Developed by James McGrann, Professor Emeritus, Texas A&M University and Christy Waggoner, Former Programmer, Texas A&M University 2015 update by Damona Doye and Roger Sahs, Oklahoma State University
D5: Salary and Benefits | AC5: Cash, Non-cash and Total Costs Per Hour | AD5: Cost By Component
B8: Description of Employment Position: | D8: Ranch Worker | F8: Date: | G8: =TRUNC(NOW()) -> 2021-10-19 | AC8: /gnuCost/hr~q | AD8: /gnuType~q
B10: Number of Acres or Head in Position : | D10: 1000
B11: Units (1=acres, 2=head) | D11: 1 | AC11: Salary | AD11: Benefits | AE11: Housing | AF11: Transportation | AG11: Livestock
B13: A. Salary | AC13: =Summary!I6 -> 64.9 | AD13: =Summary!I12 -> 28.16 | AE13: =Summary!I18 -> 18.77 | AF13: =Summary!I23 -> 4.29 | AG13: =Summary!I28 -> 0
E14: Pay | F14: No. of | G14: Annual
B15: Cash Costs of Salary | D15: Pay Rate | E15: Period | F15: Periods | G15: Total
D16: 0 | E16: $/Year | F16: 1 | G16: =(D16*F16) -> 0
D17: 3000 | E17: $/Month | F17: 12 | G17: =(D17*F17) -> 36000
D18: 0 | E18: $/Week | F18: 0 | G18: =(D18*F18) -> 0
D19: 0 | E19: $/Hour | F19: 0 | G19: =(D19*F19) -> 0
B20: Overtime Compensation | D20: 20 | E20: $/Hour | F20: 0 | G20: =(D20*F20) -> 0
B21: Cash Bonus | E21: $/Year | G21: 1000
B22: Total Cash Cost of Salary | E22: $/Year | G22: =SUM(G16:G21) -> 37000
B24: B. Payroll Tax and Benefits
E25: Compensation
B26: Payroll Tax | E26: Subject to Tax | F26: Rate %
B27: FICA/Medicare | E27: =+G22 -> 37000 | F27: 7.65 | G27: =ROUND((E27*0.01*$F27),2) -> 2830.5
B28: Federal Unemployment | E28: =+G22 -> 37000 | F28: 6.2 | G28: =ROUND((E28*0.01*$F28),2) -> 2294
B29: State Unemployment | E29: =+G22 -> 37000 | F29: 0 | G29: =ROUND((E29*0.01*$F29),2) -> 0
B30: Employers' Part of Workman Compensation | E30: =+G22 -> 37000 | F30: 2 | G30: =ROUND((E30*0.01*$F30),2) -> 740
B31: Other | E31: =+G22 -> 37000 | F31: 0 | G31: =ROUND((E31*0.01*$F31),2) -> 0
B32: Total Payroll Tax | G32: =SUM(G27:G31) -> 5864.5
B34: Benefits
B35: Taxable Retirement Contribution | E35: % | F35: 0 | G35: =ROUND((F35*0.01*$G$22),2) -> 0
B36: Non-Taxable Retirement Contribution | E36: % | F36: 7 | G36: =ROUND((F36*0.01*$G$22),2) -> 2590
B37: Employers' Part of Health/Dental Insurance | E37: $/Month | F37: 550 | G37: =(F37*12) -> 6600
B38: Cash Food Allowance | E38: $/Year | G38: 0
B39: Total Benefits | G39: =SUM(G35:G38) -> 9190
B41: Total Cash Cost of Payroll Tax and Benefits | G41: =SUM(G32 +G39) -> 15054.5
B43: Non-Cash On-Farm or Ranch Produced Food Allowance (specify by item)
B44: Meat | E44: $/Year | G44: 750
B45: Garden Food | E45: $/Year | G45: 250
B46: Other | E46: $/Year | G46: 0
B47: Total Non-Cash On-Farm or Ranch Produced Food Allowance | G47: =SUM(G44:G46) -> 1000
B49: Total Cash and Non-Cash Benefits | G49: =(G41+G47) -> 16054.5
B52: For more information:
B53: IRS Publication 15, Circular E, Employer' Tax Guide
B54: Oklahoma Tax Commission
O215: \M | P215: /xmO3~

Sheet Housing
B1: Housing Cost Calculator
B3: Housing costs? (1=Yes, 2=No) | C3: 1
B5: C. Housing
B7: Cash Costs Paid by Employer | E7: Unit | G7: Cost
B8: Utilities | E8: $/Year | G8: 0
B9: Maintenance | E9: $/Year | G9: 1000
B10: Insurance | E10: $/Year | G10: 1500
B11: Taxes | E11: $/Year | G11: 1000
B12: Other Cash Costs | E12: $/Year | G12: 0
B13: Total Cash Costs | G13: =SUM(G8:G12) -> 3500
B15: House Mortgage Payments (if being made)
B16: Principal Payment | E16: $/Month | F16: 0 | G16: =(F16*12) -> 0
B17: Interest Payment | E17: $/Month | F17: 0 | G17: =(F17*12) -> 0
B18: Total Mortgage Payment | G18: =(G16+G17) -> 0
B20: Total Cash Outflow of House with Mortgage | G20: =(G13+G18) -> 3500
B22: Non-Cash Costs of House | E22: Property | F22: Interest | G22: Interest
E23: Value | F23: Rate % | G23: 1/2 of Val.
B24: Interest on Average Investment | E24: 100000 | F24: 3.25 | G24: =ROUND((E24*0.5*F24*0.01),2) -> 1625
F26: Years Of | G26: Annual
F27: Life | G27: Depreciation
B28: Depreciation (straight line) | E28: =E24 -> 100000 | F28: 30 | G28: =IF(F28=0,0,ROUND((E28*(1/F28)),2)) -> 3333.33
B30: Total Non-Cash Cost of Housing | G30: =(G24+G28) -> 4958.33
B32: Housing Cost Using Rental Equivalent
B34: Rental Costs Equivalent Paid by Employer | F34: Monthly | G34: Annual
B35: Non-Cash Rental Rate Of Equal Housing | F35: 600 | G35: =(F35*12) -> 7200
B36: Total Cash Cost of Rent If Paid by Employer | F36: 0 | G36: =(F36*12) -> 0
B39: Total Housing Cost Summary
B41: Method Used To Calculate Cost
B42: (If rent equivalent enter 1, otherwise enter 0 so that
B43: actual costs will be used) | G43: 1
B47: Housing Cash Costs | E47: $/Year | G47: =IF(C3=2,0,IF(G43=1,(G13+G36),(G20))) -> 3500
B48: Housing Non-Cash Costs | E48: $/Year | G48: =IF(C3=2,0,IF(G43=1,(G35),(G30))) -> 7200
B50: Housing Cash and Non-Cash Costs | E50: $/Year | G50: =(G47+G48) -> 10700

Sheet Transportation
B1: Transportation Costs Calculation
B3: Transportation costs? (1=Yes, 2=No) | C3: 1
B5: D. Transportation Costs
B7: Input Data | G7: Vehicle
D8: Units | G8: Values
B9: Current Value | D9: Dol. | G9: 25000
B10: Total Miles Used (useful life) | D10: Mile | G10: 150000
B11: Current Mileage | D11: Mile | G11: 75000
B12: Number of Miles Per Year | D12: Miles | G12: 40000
B13: Percent of Miles Used For Employee's
B14: Personal Use | D14: % | G14: 10
B15: Salvage Value (trade or junk) | D15: Dol. | G15: 3000
B16: Annual Miles of Use | D16: Mile | G16: =G12 -> 40000
B17: Fuel Use (miles per gallon) | D17: Gal. | G17: 15
B18: Cost of Fuel | D18: $/Gal. | G18: 3
B19: Interest Rate on Capital | D19: % | G19: 5
B20: Annual License & Tax | D20: Dol. | G20: 150
B21: Annual Insurance | D21: Dol. | G21: 1250
B22: Tire Cost (per set) | D22: Dol. | G22: 1000
B23: Tire Life in Miles | D23: Mile | G23: 25000
B24: Annual Repair & Maintenance Cost | D24: Dol. | G24: 750
B27: Cost Summary - Personal Use Only
G28: Vehicle
B29: Operating or Variable Cost | E29: Unit | G29: Values
B30: Fuel | E30: Dol./Mi. | G30: =G60 -> 0.2
B31: Tires | E31: Dol./Mi. | G31: =G61 -> 0.04
B32: Repair & Maintenance | E32: Dol./Mi. | G32: =G62 -> 0.01875
B33: Total Operating Cost | E33: Dol./Mi. | G33: =SUM(G30:G32) -> 0.25875
B34: Annual Operating Cost | E34: Dol. | G34: =ROUND(($G$12*$G$14*0.01*G33),2) -> 1035
B36: Fixed Costs
B37: License / Tax | E37: Dol./Mi. | G37: =G67 -> 0.00375
B38: Insurance | E38: Dol./Mi. | G38: =G68 -> 0.03125
B39: Interest (non-cash) | E39: Dol./Mi. | G39: =G69 -> 0.02391666667
B40: Depreciation | E40: Dol./Mi. | G40: =G70 -> 0.2933333333
B41: Total Fixed Cost | E41: Dol./Mi. | G41: =SUM(G37:G40) -> 0.35225
B42: Total Annual Fixed Cost | E42: Dol. | G42: =ROUND(($G$12*$G$14*0.01*G41),2) -> 1409
B44: Other cash allowances for transportation costs | F44: $/Year | G44: 0
B47: Total Vehicle Cost Summary
B49: Total Annual Cash Cost | E49: Dol. | G49: =IF(C3=2,0,ROUND((($G$12*$G$14*0.01*(G37+G38))+G34+G44),2)) -> 1175
B50: Total Annual Non-cash Cost | E50: Dol. | G50: =IF(C3=2,0,($G$12*$G$14*0.01*(G39+G40))) -> 1269
B51: Total Annual Cost | E51: Dol. | G51: =IF(C3=2,0,(G34+G42+G44)) -> 2444
B55: Per Mile and Annual Costs
B57: Cost Component | D57: Units | G57: Values
B59: Operating or Variable Cost
B60: Fuel | D60: Dol./Mi. | G60: =IF(G17=0,0,G18/G17) -> 0.2
B61: Tires | D61: Dol./Mi. | G61: =IF(G23=0,0,G22/G23) -> 0.04
B62: Repair & Maintenance | D62: Dol./Mi. | G62: =IF(G16=0,0,G24/G16) -> 0.01875
B63: Total Operating or Variable Cost | D63: Dol./Mi. | G63: =SUM(G60:G62) -> 0.25875
B65: Annual Operating or Variable Cost | D65: Dol. | G65: =(G63*G16) -> 10350
B66: Fixed Costs
B67: License / Tax | D67: Dol./Mi. | G67: =IF(G16=0,0,G20/G16) -> 0.00375
B68: Insurance | D68: Dol./Mi. | G68: =IF(G16=0,0,G21/G16) -> 0.03125
B69: Interest (non-cash) | D69: Dol./Mi. | G69: =IF(G16=0,0,(G9-(((G9-G15)*(G16/(G10-G11))/2)))*G19*0.01/G16) -> 0.02391666667
B70: Depreciation | D70: Dol./Mi. | G70: =IF(G16=0,0,((G9-G15)*G16/(G10-G11))/G16) -> 0.2933333333
B71: Total Fixed Cost | D71: Dol./Mi. | G71: =SUM(G67:G70) -> 0.35225
B72: Total Annual Fixed Cost | D72: Dol. | G72: =(G71*G16) -> 14090
B74: Total Cost per Mile | D74: Dol./Mi. | G74: =IF(G16=0,0,((G65+G72)/G16)) -> 0.611
B75: Total Annual Cost | D75: Dol. | G75: =(G65+G72) -> 24440
B77: Total Cash Costs per Mile | D77: Dol./Mi. | G77: =IF(G16=0,0,G78/G16) -> 0.29375
B78: Total Cash Costs | D78: Dol. | G78: =(G65+G20+G21) -> 11750

Sheet Livestock
B1: Allowances for Horses or Other Livestock Paid by Employer
B3: E. Allowances for horses or other livestock paid by employer
B5: Total Annual Cash Cost | E5: Dol. | G5: 0
B7: Total Annual Non-Cash Cost | E7: Dol. | G7: 0
B9: Total Annual Employer Cost | E9: Dol. | G9: =(G5+G7) -> 0
B11: Employee Non-Cash Credit For Horse | E11: Dol. | G11: 0
B14: OSU CR-205, Oklahoma Pasture Rental Rates

Sheet Summary
B1: Summary of Labor or Hired Management Costs
I4: Percent of | P4: =IF(SalaryBenefits!D11=1," $/Acre","$/Head") -> $/Acre
B5: A. Salary | G5: $/Year | H5: =+P4 -> $/Acre | I5: Total | P5: =IF(SalaryBenefits!D11=1," Per Acre","Per Head") -> Per Acre
B6: Total Cash Cost of Salary | G6: =SalaryBenefits!G22 -> 37000 | H6: =+G6/SalaryBenefits!$D$10 -> 37 | I6: =ROUND((G6/$G$35)*100,2) -> 64.9
B8: B. Payroll Tax and Benefits
B9: Total Cash Cost of Payroll Tax | G9: =+SalaryBenefits!G32 -> 5864.5 | H9: =+G9/SalaryBenefits!$D$10 -> 5.8645
B10: Total Cash Cost of Benefits | G10: =+SalaryBenefits!G39 -> 9190 | H10: =+G10/SalaryBenefits!$D$10 -> 9.19
B11: Total Non-Cash On-Farm or Ranch Produced Food Allowance | G11: =+SalaryBenefits!G47 -> 1000 | H11: =+G11/SalaryBenefits!$D$10 -> 1
B12: Total Cash and Non-cash Cost of Benefits | G12: =SalaryBenefits!G49 -> 16054.5 | H12: =+G12/SalaryBenefits!$D$10 -> 16.0545 | I12: =ROUND((G12/$G$35)*100,2) -> 28.16
B14: C. Housing
B15: Housing Cash Outflow With Mortgage Payments | G15: =Housing!G45 -> 0 | H15: =+G15/SalaryBenefits!$D$10 -> 0
B16: Housing Cash Costs | G16: =Housing!G47 -> 3500 | H16: =+G16/SalaryBenefits!$D$10 -> 3.5
B17: Housing Non-Cash Costs | G17: =Housing!G48 -> 7200 | H17: =+G17/SalaryBenefits!$D$10 -> 7.2
B18: Housing Cash and Non-Cash Costs | G18: =Housing!G50 -> 10700 | H18: =+G18/SalaryBenefits!$D$10 -> 10.7 | I18: =ROUND((G18/$G$35)*100,2) -> 18.77
B20: D. Transportation Costs
B21: Total Annual Cash Cost | G21: =Transportation!G49 -> 1175 | H21: =+G21/SalaryBenefits!$D$10 -> 1.175
B22: Total Annual Non-Cash Cost | G22: =Transportation!G50 -> 1269 | H22: =+G22/SalaryBenefits!$D$10 -> 1.269
B23: Total Annual Cost | G23: =Transportation!G51 -> 2444 | H23: =+G23/SalaryBenefits!$D$10 -> 2.444 | I23: =ROUND((G23/$G$35)*100,2) -> 4.29
B25: E. Allowances for horses or other livestock paid by employer
B26: Total Annual Cash Cost | G26: =+Livestock!G5 -> 0 | H26: =+G26/SalaryBenefits!$D$10 -> 0
B27: Total Annual Non-Cash Cost Adjusted For Horse Credit | G27: =+Livestock!G7 -> 0 | H27: =+G27/SalaryBenefits!$D$10 -> 0
B28: Total Annual Cost | G28: =(G26+G27) -> 0 | H28: =+G28/SalaryBenefits!$D$10 -> 0 | I28: =ROUND((G28/$G$35)*100,2) -> 0
B31: Summary of All Pre-Tax Costs
B33: Total Annual Cash Cost | G33: =(G6+G9+G16+G21+G26) -> 47539.5
B34: Total Annual Non-Cash Cost | G34: =(G11+G17+G22+G27) -> 9469
B35: Total Annual Cost | G35: =(G33+G34) -> 57008.5 | I35: =ROUND((G35/$G$35)*100,2) -> 100
B37: Total Annual Cash Outflow | G37: =(G6+G9+G15+G21+G26) -> 44039.5
B39: Number of Normal Working Days Per Year | E39: Days | G39: =50*5.5 -> 275
B40: Average Hours of Work Daily | E40: Hrs/Day | G40: 9
B41: Calculated Hours of Work | E41: Hrs/Year | G41: =(G39*G40) -> 2475
B43: Annual Total Overtime Hours | E43: Hrs/Year | G43: =+SalaryBenefits!F20 -> 0
B44: Total Annual Hours of Work | E44: Hrs/Year | G44: =(G41+G43) -> 2475
E46: Per Day | G46: Per Hour | H46: =+P5 -> Per Acre
B47: Total Cash Cost | E47: =ROUND((G33/($G$44/$G$40)),2) -> 172.87 | G47: =ROUND((G33/($G$44)),2) -> 19.21 | H47: =+G33/SalaryBenefits!$D$10 -> 47.5395
B48: Total Non-Cash Cost | E48: =ROUND((G34/($G$44/$G$40)),2) -> 34.43 | G48: =ROUND((G34/($G$44)),2) -> 3.83 | H48: =+G34/SalaryBenefits!$D$10 -> 9.469
B49: Total Cost | E49: =ROUND((G35/($G$44/$G$40)),2) -> 207.3 | G49: =ROUND((G35/($G$44)),2) -> 23.03 | H49: =+G35/SalaryBenefits!$D$10 -> 57.0085
B51: Total Cash Outflow | E51: =ROUND((G37/($G$44/$G$40)),2) -> 160.14 | G51: =ROUND((G37/($G$44)),2) -> 17.79 | H51: =+G37/SalaryBenefits!$D$10 -> 44.0395
B53: Taxable Earnings of Employee | E53: Dol. | G53: =(SalaryBenefits!G22+SalaryBenefits!G37+SalaryBenefits!G38+SalaryBenefits!G47+Housing!G13+Housing!G35+Housing!G36+Transportation!G51+Livestock!G9+Livestock!G11+SalaryBenefits!G29) -> 57744
B54: Tax Deductible Costs by Employer | E54: Dol. | G54: =ROUND((SalaryBenefits!G22+SalaryBenefits!G49+Housing!G13+Housing!G36+Transportation!G51-(Transportation!G12*Transportation!G14*0.01*Transportation!G39)+Livestock!G9-Livestock!G11)+(IF(Housing!G43=1,Housing!G35,(Housing!G28+Housing!G17))),2) -> 66102.83
B59: .

Sheet Graphs
